bitfinex-derivatives/quotes_ETHF0:USTF0_20250528
["timestamp","ask_amount","ask_price","bid_price","bid_amount"]
[1748472625095,2.07105,2645.6,2645.5,1.344]
[1748472625495,1.3153,2645.6,2645.5,2.09977]
[1748472625899,2.07105,2645.6,2645.5,2.09977]
[1748472626199,1.3153,2645.6,2645.5,2.09977]
[1748472626895,1.3153,2645.6,2645.5,2.74437]
[1748472627307,0.61743363,2645.9,2645.8,0.75569]
[1748472627503,1.95463363,2645.9,2645.8,0.75569]
[1748472627804,0.00563363,2645.9,2645.8,0.75569]
[1748472628003,0.00563363,2645.9,2645.8,7.06749]
[1748472628801,0.00563363,2645.9,2645.8,2.06749]
[1748472629504,2.06999363,2645.9,2645.8,2.06749]
[1748472629803,1.31433363,2645.9,2645.8,2.06749]
[1748472629998,2.06999363,2645.9,2645.8,2.06749]
[1748472630205,1.31433363,2645.9,2645.8,2.06749]
[1748472630806,2.06999363,2645.9,2645.8,0.75569]
[1748472631504,1.31433363,2645.9,2645.8,0.75569]
[1748472633601,0.00563363,2645.9,2645.8,0.75569]
[1748472633807,0.00563363,2645.9,2645.8,2.02699]
[1748472634306,1.27863363,2645.9,2645.8,2.02699]
[1748472634604,0.00563363,2645.9,2645.8,2.02699]
[1748472646116,0.01054611,2645.9,2645.8,2.02699]
[1748472647714,0.01054611,2645.9,2645.8,19.40299]
[1748472649312,0.01054611,2645.9,2645.8,19.39799]
[1748472649806,0.01054611,2645.9,2645.8,19.39599]
[1748472650808,3.2078,2646.6,2646.5,0.75549]
[1748472651305,3.96328,2646.6,2646.5,0.75549]
[1748472652723,1.88873,2646.5,2646.1,3.2078]
[1748472652919,0.75557,2646.3,2646.2,0.75553]
[1748472653512,2.65387,2646.3,2646.2,0.75553]
[1748472654108,1.8983,2646.3,2646.2,0.75553]
[1748472654316,1.8983,2646.3,2646.2,18.13353]
[1748472655423,1.8983,2646.3,2646.2,19.42883]
[1748472655624,3.747,2646.8,2646.4,1.8888]
[1748472655921,1.8454,2646.7,2646.6,0.75546]
[1748472657823,6.9448,2647.2,2646.7,1.88852]
[1748472658028,3.22784,2647.1,2647.0,0.75532]
[1748472659320,0.75537,2647.0,2646.9,0.75535]
[1748472659524,2.00234,2647.1,2647.0,0.75535]
[1748472660225,1.247,2647.1,2647.0,0.75535]
[1748472660731,1.247,2647.1,2647.0,3.96315]
[1748472661126,2.00232,2647.1,2647.0,3.96315]
[1748472661631,1.88777,2647.9,2647.1,1.8883]
[1748472661832,0.6096,2647.4,2647.3,0.75526]
[1748472662332,0.6096,2647.4,2647.3,3.96306]
[1748472663335,1.36483,2647.4,2647.3,3.96306]
[1748472663533,1.36483,2647.4,2647.3,3.2078]
[1748472664532,1.36483,2647.4,2647.3,3.96306]
[1748472664837,1.43946908,2647.4,2647.3,3.2078]
[1748472665035,0.75526,2647.3,2647.2,17.387]
[1748472665335,0.75526,2647.3,2647.1,0.75531]
[1748472665336,0.75532,2647.1,2647.0,3.96312]
[1748472665636,0.75532,2647.2,2647.1,0.7553]
[1748472665833,2.57233908,2647.4,2647.0,3.2078]
[1748472666135,1.38552,2647.1,2647.0,21.34912]
[1748472666532,1.38552,2647.1,2647.0,3.2078]
[1748472666739,0.75537,2646.9,2646.8,0.00567086]
[1748472668039,0.75537,2646.9,2646.8,0.76107086]
[1748472668241,0.75537,2646.9,2646.8,0.00567086]
[1748472668939,0.75537,2646.9,2646.8,0.76107086]
[1748472669340,0.75537,2646.9,2646.8,0.00567086]
[1748472669943,0.75537,2646.9,2646.8,0.76107086]
[1748472669944,3.736,2646.9,2646.8,0.76107086]
[1748472670240,4.49137,2646.9,2646.8,0.76107086]
[1748472670440,5.13107,2646.9,2646.8,0.76107086]
[1748472670942,4.3757,2646.9,2646.8,0.76107086]
[1748472672245,5.13107,2646.9,2646.8,0.76107086]
[1748472672445,1.39507,2646.9,2646.8,0.76107086]
[1748472676739,0.75528,2647.4,2646.8,3.21347086]
[1748472676939,1.9105,2647.4,2647.3,0.75523]
[1748472677145,2.66573,2647.4,2647.3,0.75523]
[1748472677947,2.74036908,2647.4,2647.3,0.75523]
[1748472678245,2.74036908,2647.4,2647.3,1.40873]
[1748472679448,2.74036908,2647.4,2647.3,0.6535]
[1748472679644,1.98513908,2647.4,2647.1,3.2078]
[1748472679947,0.75529,2647.2,2647.1,3.96311]
[1748472680147,0.75529,2647.2,2647.1,0.75531]
[1748472681343,0.75532,2647.1,2647.0,2.07963]
[1748472681549,0.75537,2646.9,2646.8,3.21347086]
[1748472681744,0.75537,2646.9,2646.8,3.96887086]
[1748472682249,1.42447,2646.9,2646.8,3.96887086]
[1748472682447,2.76087,2646.9,2646.8,3.96887086]
[1748472688646,6.50287,2646.9,2646.8,0.00567086]
[1748472688846,11.50287,2646.9,2646.8,0.00567086]
[1748472689053,12.81667499,2646.9,2646.8,0.00567086]
[1748472689354,7.81667499,2646.9,2646.8,0.00567086]
[1748472689553,6.50287,2646.9,2646.8,0.00567086]
[1748472691648,7.81606136,2646.9,2646.8,0.00567086]
[1748472695053,6.50287,2646.9,2646.8,0.00567086]
[1748472695251,7.81579466,2646.9,2646.8,0.00567086]
[1748472697754,0.75569,2645.9,2645.6,3.2078]
[1748472698055,3.742,2646.1,2645.7,1.966]
[1748472698245,4.49762,2646.1,2646.0,0.75563]
[1748472699047,3.742,2646.1,2646.0,2.10673]
[1748472700159,4.4976,2646.1,2646.0,2.10673]
[1748472701555,3.742,2646.1,2646.0,2.10673]
[1748472702059,4.4976,2646.1,2646.0,2.10673]
[1748472702360,0.7556,2646.2,2646.1,0.75558]
[1748472702658,0.7556,2646.2,2646.1,1.99548]
[1748472703363,0.7556,2646.2,2646.1,1.2399]
[1748472703563,0.7556,2646.2,2646.1,1.9955]
[1748472705464,0.7556,2646.2,2646.1,1.2399]
[1748472707767,0.00567086,2646.3,2646.2,0.75557]
[1748472708068,0.00567086,2646.3,2646.2,5.25437]
[1748472708459,0.00567086,2646.3,2646.2,10.25437]
[1748472711767,0.00567086,2646.3,2646.2,27.66437]
[1748472713263,0.00567086,2646.3,2646.2,27.65737]
[1748472716564,0.00567086,2646.3,2646.2,10.25437]
[1748472716766,0.00567086,2646.3,2646.2,22.64637]
[1748472718165,0.00567086,2646.3,2646.2,23.29357]
[1748472718472,0.00567086,2646.3,2646.2,5.90157]
[1748472718673,0.00567086,2646.3,2646.2,23.28757]
[1748472718973,0.00567086,2646.3,2646.2,5.90157]
[1748472719173,0.00567086,2646.3,2646.2,23.28557]
[1748472719963,0.00567086,2646.3,2646.2,23.28257]
[1748472722375,0.00567086,2646.3,2646.2,23.27757]
[1748472722572,0.00567086,2646.3,2646.2,23.27557]
[1748472723274,0.00567086,2646.3,2646.2,5.90157]
[1748472723470,0.00567086,2646.3,2646.2,23.27857]
[1748472724676,0.00567086,2646.3,2646.2,23.27457]
[1748472724974,1.40892086,2646.3,2646.2,21.33737]
[1748472725273,2.05872086,2646.3,2646.2,21.33737]
[1748472725476,1.30317086,2646.3,2646.2,21.33737]
[1748472725672,1.30317086,2646.3,2646.2,3.96337]
[1748472725872,2.58537086,2646.3,2646.2,3.96337]
[1748472726179,3.34092086,2646.3,2646.2,3.96337]
[1748472726382,2.58537086,2646.3,2646.2,3.96337]
[1748472728876,0.00567086,2646.3,2646.2,3.96337]
[1748472729082,0.00567086,2646.3,2646.2,5.21307]
[1748472743987,0.00567086,2646.3,2646.2,3.96337]
[1748472744187,0.00567086,2646.3,2646.2,21.28937]
[1748472745089,1.25977086,2646.3,2646.2,21.28937]
[1748472745291,2.01532086,2646.3,2646.2,3.2078]
[1748472745790,0.75563,2646.0,2645.9,3.2078]
[1748472745982,1.88895,2646.2,2645.9,3.2078]
[1748472745983,4.49963,2646.1,2645.9,3.2078]
[1748472746185,1.2541,2646.1,2646.0,0.75563]
[1748472746488,4.4193,2646.2,2646.1,0.7556]
[1748472747491,0.75563,2646.1,2646.0,0.75561]
[1748472752601,4.5323,2646.2,2646.1,0.7556]
[1748472752901,5.2879,2646.2,2646.1,0.7556]
[1748472753715,0.75563,2646.1,2646.0,0.75561]
[1748472763511,2.06263,2646.1,2646.0,0.75561]
[1748472764517,0.75566,2646.0,2645.8,3.21347086]
[1748472764813,0.75566,2645.9,2645.8,3.96914086]
[1748472765319,2.02726,2645.9,2645.8,3.96914086]
[1748472766916,2.02726,2645.9,2645.8,0.76134086]
[1748472773622,2.02726,2645.9,2645.8,1.97914086]
[1748472777026,5.894,2647.8,2645.8,7.22347086]
[1748472777225,0.7552,2647.5,2647.4,3.96303]
[1748472777420,0.75519,2647.6,2647.5,0.75519]
[1748472777619,0.75519,2647.6,2647.5,1.3471]
[1748472777922,0.75519,2647.6,2647.5,2.10231]
[1748472778125,0.75516,2647.7,2647.6,0.75516]
[1748472778514,6.9338,2648.0,2647.6,0.75515]
[1748472778714,3.726,2648.0,2647.7,1.3471]
[1748472778922,0.75512,2647.8,2647.7,5.31004]
[1748472780121,0.75511,2647.9,2647.8,0.75511]
[1748472780429,0.75509,2647.9,2647.8,0.75512]
[1748472780628,4.55509,2647.9,2647.8,0.75512]
[1748472780824,3.2078,2648.3,2647.7,4.5549]
[1748472781035,0.75509,2647.9,2647.8,2.0062]
[1748472781525,0.75508,2648.0,2647.9,0.75507]
[1748472781726,0.75502,2648.2,2648.1,0.75503]
[1748472781931,0.75502,2648.2,2648.0,3.2078]
[1748472782232,0.75503,2648.1,2648.0,3.96285]
[1748472783626,0.75503,2648.2,2648.1,0.75503]
[1748472783928,0.75503,2648.1,2648.0,3.96285]
[1748472784226,0.75502,2648.2,2648.0,3.2078]
[1748472784730,0.75503,2648.1,2648.0,3.96285]
[1748472785332,0.82966908,2648.1,2648.0,3.96285]
[1748472785627,0.82966908,2648.1,2648.0,3.2078]
[1748472786229,0.07463908,2648.1,2648.0,3.96286]
[1748472793333,0.07463908,2648.1,2648.0,21.40086]
[1748472793631,0.07463908,2648.1,2648.0,22.69406]
[1748472797633,0.82966908,2648.1,2648.0,5.25606]
[1748472797834,0.07463908,2648.1,2648.0,22.67706]
[1748472799329,0.07463908,2648.1,2648.0,5.25606]
[1748472799531,0.07463908,2648.1,2648.0,22.67106]
[1748472803838,0.07463908,2648.1,2648.0,5.25606]
[1748472804038,0.07463908,2648.1,2648.0,22.65406]
[1748472805834,0.82966908,2648.1,2648.0,22.64806]
[1748472806037,0.07463908,2648.1,2648.0,22.64806]
[1748472806235,1.38903908,2648.1,2648.0,22.64806]
[1748472808541,1.38903908,2648.1,2648.0,5.25606]
[1748472808735,1.38903908,2648.1,2648.0,22.64006]
[1748472809838,2.14406908,2648.1,2648.0,3.2078]
[1748472810040,2.14406908,2648.1,2648.0,3.96286]
[1748472810241,2.14406908,2648.1,2648.0,21.34186]
[1748472814740,1.38903908,2648.1,2648.0,21.34186]
[1748472816538,2.14406908,2648.1,2648.0,3.96286]
[1748472816737,2.14406908,2648.1,2648.0,21.35086]
[1748472818247,2.14406908,2648.1,2648.0,3.96286]
[1748472818449,2.14406908,2648.1,2648.0,21.34786]
[1748472823053,2.14406908,2648.1,2648.0,3.96286]
[1748472823247,2.14406908,2648.1,2648.0,21.33286]
[1748472824748,2.14406908,2648.1,2648.0,21.95066]
[1748472826051,1.38903908,2648.1,2648.0,21.95066]
[1748472827849,2.14406908,2648.1,2648.0,21.95066]
[1748472839364,2.14406908,2648.1,2648.0,4.58066]
[1748472839558,2.14406908,2648.1,2648.0,21.90266]
[1748472842659,2.14406908,2648.1,2648.0,4.58066]
[1748472842862,2.14406908,2648.1,2648.0,21.89366]
[1748472843660,2.14406908,2648.1,2648.0,4.58066]
[1748472843864,2.14406908,2648.1,2648.0,21.89166]
[1748472844357,2.14406908,2648.1,2647.5,5.63695]
[1748472844358,0.7552,2647.5,2647.4,3.2078]
[1748472844559,0.75523,2647.4,2647.3,17.32267086]
[1748472844763,0.75523,2647.4,2647.3,19.31893086]
[1748472844962,0.75521,2647.5,2647.4,0.7552]
[1748472845160,0.75521,2647.5,2647.4,2.6812]
[1748472846063,0.75517,2647.7,2647.6,0.75518]
[1748472846564,0.07463908,2648.1,2647.8,0.75511]
[1748472846565,0.75511,2647.9,2647.8,0.75511]
[1748472846958,0.75514,2647.8,2647.7,0.75513]
[1748472847459,0.75508,2648.0,2647.9,0.75507]
[1748472848063,0.07463908,2648.1,2648.0,0.75506]
[1748472848264,0.07463908,2648.1,2648.0,19.38706]
[1748472848764,0.82966908,2648.1,2648.0,19.38706]
[1748472849167,0.07463908,2648.1,2648.0,19.38706]
[1748472849461,0.82966908,2648.1,2648.0,19.38706]
[1748472852063,5.09423,2649.8,2648.0,27.337]
[1748472852265,0.75471,2649.3,2649.1,3.96253]
[1748472852465,0.75469,2649.3,2649.2,1.8542]
[1748472852669,0.82931908,2649.4,2649.2,2.60891]
[1748472852971,0.75469,2649.3,2649.2,1.8542]
[1748472853174,1.2481,2649.3,2649.0,17.401]
[1748472853374,1.2481,2649.3,2649.2,0.75472]
[1748472853573,2.00279,2649.3,2649.1,1.2273]
[1748472853967,2.00281,2649.3,2649.1,1.98204]
[1748472854167,2.00281,2649.3,2649.2,0.75472]
[1748472854168,1.2481,2649.3,2649.2,0.75472]
[1748472854666,1.2481,2649.3,2649.1,1.2273]
[1748472854667,0.75465,2649.5,2649.3,0.75466]
[1748472854864,0.75469,2649.4,2649.1,4.4351]
[1748472855068,0.75469,2649.4,2649.2,2.0247]
[1748472855371,1.3201,2649.3,2649.2,2.0247]
[1748472857271,2.07479,2649.3,2649.2,2.0247]
[1748472857771,0.75479,2649.0,2648.8,3.2078]
[1748472857975,1.2956,2648.9,2648.8,3.96263]
[1748472858275,1.2956,2648.9,2648.8,5.30653]
[1748472859374,1.37023908,2648.9,2648.8,5.30653]
[1748472860268,0.07463908,2648.9,2648.8,5.30653]
[1748472862370,0.07463908,2648.9,2648.8,2.09873]
[1748472862566,0.07463908,2648.9,2648.8,5.30653]
[1748472863075,0.82944908,2648.9,2648.8,5.30653]
[1748472863277,0.07463908,2648.9,2648.8,5.30653]
[1748472865678,2.09204908,2648.9,2648.8,5.30653]
[1748472866481,1.33723908,2648.9,2648.8,5.30653]
[1748472867483,2.09204908,2648.9,2648.8,5.30653]
[1748472870985,1.33723908,2648.9,2648.8,5.30653]
[1748472873286,2.09204908,2648.9,2648.8,5.30653]
[1748472879189,2.09204908,2648.9,2648.8,3.2078]
[1748472879389,2.09204908,2648.9,2648.8,3.96263]
[1748472880490,2.09204908,2648.9,2648.8,5.18113]
[1748472881191,0.82944908,2648.9,2648.8,5.18113]
[1748472882691,0.83451964,2648.9,2648.8,5.18113]
[1748472884892,0.75483,2648.8,2648.7,0.6533]
[1748472885094,2.73773,2648.8,2648.7,1.40816]
[1748472887884,0.75483,2648.8,2648.7,1.40816]
[1748472888590,0.19260964,2648.9,2648.8,0.75483]
[1748472888790,0.19260964,2648.9,2648.8,2.03173]
[1748472889795,0.87278056,2648.9,2648.8,2.03173]
[1748472891297,0.87278056,2648.9,2648.8,1.2769]
[1748472893901,0.87278056,2648.9,2648.8,2.03173]
[1748472895895,0.87278056,2648.9,2648.8,1.2769]
[1748472897405,0.87278056,2648.9,2648.8,2.03173]
[1748472900605,0.87278056,2648.9,2648.8,1.2769]
[1748472900803,0.75483,2648.8,2648.7,0.6533]
[1748472901003,2.10006908,2648.8,2648.7,0.6533]
[1748472902003,2.10006908,2648.8,2648.7,1.40816]
[1748472902308,2.10006908,2648.8,2648.7,2.73916]
[1748472902509,2.10006908,2648.8,2648.7,1.9843]
[1748472903210,2.10006908,2648.8,2648.7,2.73916]
[1748472904911,2.10006908,2648.8,2648.7,1.9843]
[1748472905110,2.10006908,2648.8,2648.7,2.73916]
[1748472905311,0.82946908,2648.8,2648.7,2.73916]
[1748472905811,0.07463908,2648.8,2648.7,2.73916]
[1748472906111,0.82946908,2648.8,2648.7,2.73916]
[1748472907608,0.07463908,2648.8,2648.7,2.73916]
[1748472908512,0.82946908,2648.8,2648.7,2.73916]
[1748472911218,0.82946908,2648.8,2648.7,1.9843]
[1748472911421,2.08526908,2648.8,2648.7,2.73916]
[1748472911720,2.08526908,2648.8,2648.7,1.9843]
[1748472912418,2.08526908,2648.8,2648.7,2.73916]
[1748472913212,0.82946908,2648.8,2648.7,2.73916]
[1748472916421,0.07463908,2648.8,2648.7,2.73916]
[1748472918917,0.82946908,2648.8,2648.7,2.73916]
[1748472920527,0.82946908,2648.8,2648.7,1.9843]
[1748472920727,0.75486,2648.7,2648.6,3.21347086]
[1748472920928,2.01506,2648.7,2648.6,3.21347086]
[1748472921128,2.01506,2648.7,2648.6,4.46057086]
[1748472922226,2.01506,2648.7,2648.6,5.21546086]
[1748472924531,2.01506,2648.7,2648.6,22.50046086]
[1748472927231,2.01506,2648.7,2648.6,21.74557086]
[1748472927438,2.01506,2648.7,2648.6,22.50046086]
[1748472927836,2.01506,2648.7,2648.6,0.00567086]
[1748472928438,3.27238011,2648.7,2648.6,0.00567086]
[1748472928838,2.01506,2648.7,2648.6,0.00567086]
[1748472930335,0.18753908,2648.8,2648.7,0.75486]
[1748472930535,0.18753908,2648.8,2648.7,2.72126]
[1748472930736,0.18753908,2648.8,2648.7,3.35676]
[1748472932043,3.96236,2649.8,2648.9,1.88702]
[1748472932333,1.25621036,2649.7,2649.6,0.75459]
[1748472932536,3.2078,2650.2,2649.6,3.2078]
[1748472932740,0.75447,2650.1,2649.9,0.7545]
[1748472932933,0.75447,2650.1,2650.0,1.3367]
[1748472933334,1.3128,2650.3,2650.0,1.3367]
[1748472933335,1.3128,2650.3,2650.1,0.75445]
[1748472933536,2.06722,2650.3,2650.2,1.3446]
[1748472934531,0.75449,2650.0,2649.9,0.00566006]
[1748472935140,3.2078,2650.8,2649.9,0.00566006]
[1748472935446,0.82909908,2650.1,2650.0,3.2078]
[1748472935743,0.82909908,2650.1,2650.0,4.5524]
[1748472937442,0.75449,2650.0,2649.9,0.00566006]
[1748472937745,2.07779,2650.0,2649.9,0.00566006]
[1748472945044,0.07463908,2650.1,2650.0,0.75449]
[1748472945240,0.82909908,2650.1,2650.0,5.96859]
[1748472946840,0.82909908,2650.1,2650.0,5.2141]
[1748472947046,0.75449,2650.0,2649.9,0.00566006]
[1748472947342,2.07889,2650.0,2649.9,0.00566006]
[1748472947943,2.07889,2650.0,2649.9,1.28166006]
[1748472950152,3.702,2650.1,2649.9,1.28166006]
[1748472950153,4.45649,2650.1,2650.0,0.75449]
[1748472950655,4.45649,2650.1,2650.0,1.40989]
[1748472950855,4.45649,2650.1,2650.0,0.6554]
[1748472951154,4.45649,2650.1,2650.0,1.40989]
[1748472951350,0.75449,2650.1,2650.0,5.156]
[1748472952751,0.75449,2650.1,2650.0,5.91049]
[1748472953958,0.75449,2650.1,2650.0,5.156]
[1748472964859,0.82912908,2650.1,2650.0,5.156]
[1748472965361,0.82912908,2650.1,2650.0,1.9482]
[1748472973363,0.82912908,2650.1,2649.6,2.5447]
[1748472973364,0.75458,2649.7,2649.6,0.6582]
[1748472973859,0.75458,2649.7,2649.6,1.41281]
[1748472974061,0.75458,2649.7,2649.6,2.75021]
[1748472974267,0.75458,2649.7,2649.6,1.9956]
[1748472975655,0.75458,2649.7,2649.6,2.75021]
[1748472976359,0.75458,2649.7,2649.6,1.9956]
[1748472978768,0.75458,2649.7,2649.5,3.2078]
[1748472978769,3.13032,2649.8,2649.4,0.00566006]
[1748472979069,0.75463,2649.5,2649.4,0.00566006]
[1748472979268,0.75463,2649.5,2649.4,1.35406006]
[1748472979863,1.98823,2649.5,2649.4,1.35406006]
[1748472980064,0.75463,2649.5,2649.4,1.35406006]
[1748472980264,0.75463,2649.5,2649.4,2.10872006]
[1748472981373,0.75463,2649.5,2649.4,1.35406006]
[1748472981870,0.75463,2649.5,2649.4,2.10872006]
[1748472982872,0.75463,2649.5,2649.4,1.35406006]
[1748472983774,0.07463908,2649.7,2649.6,0.75461]
[1748472983967,0.07463908,2649.7,2649.6,3.96241]
[1748472984967,0.07463908,2649.7,2649.6,4.58561]
[1748472985475,0.00562404,2649.9,2649.8,0.75455]
[1748472988769,0.00562404,2649.9,2649.8,1.38795]
[1748472989574,0.76014404,2649.9,2649.8,1.38795]
[1748472989873,0.00562404,2649.9,2649.8,1.38795]
[1748472994277,0.08026312,2649.9,2649.8,1.38795]
[1748472996280,0.08026312,2649.9,2649.8,4.59575]
[1748472999974,3.689,2651.0,2649.8,8.8412]
[1748473000179,3.689,2651.0,2650.7,0.75428]
[1748473000180,0.75429,2650.8,2650.7,0.75428]
[1748473000686,0.75431,2650.7,2650.6,0.7543]
[1748473000976,0.75431,2650.7,2650.6,1.2649]
[1748473001182,0.75431,2650.7,2650.6,2.01922]
[1748473002783,0.75431,2650.7,2650.6,1.2649]
[1748473002984,1.303,2650.8,2650.4,3.2078]
[1748473002985,0.75435,2650.5,2650.4,0.75438]
[1748473003680,1.42794,2650.6,2650.5,0.75435]
[1748473006885,0.75434,2650.6,2650.5,0.75435]
[1748473009488,0.82897908,2650.6,2650.5,0.75435]
[1748473009987,0.75437,2650.5,2650.4,0.75436]
[1748473010686,0.07463908,2650.6,2650.1,3.868]
[1748473010885,0.75443,2650.3,2650.2,0.75441]
[1748473012889,0.75444,2650.2,2650.1,5.93535]
[1748473013090,0.75444,2650.2,2650.1,23.20835]
[1748473015291,0.75444,2650.3,2650.2,0.75441]
[1748473015690,0.75444,2650.3,2650.2,2.04451]
[1748473021294,0.7544,2650.4,2650.3,0.75438]
[1748473022695,0.75441,2650.3,2650.2,2.04451]
[1748473023001,0.75441,2650.3,2650.2,19.31651]
[1748473024093,1.99331,2650.3,2650.2,19.31651]
[1748473024495,1.2389,2650.3,2650.2,19.31651]
[1748473024697,1.99331,2650.3,2650.2,19.31651]
[1748473025795,1.31353908,2650.3,2650.2,19.31651]
[1748473026094,0.07463908,2650.3,2650.2,19.31651]
[1748473028594,0.07463908,2650.3,2649.8,3.2078]
[1748473028796,1.88617,2650.1,2649.5,19.2276]
[1748473028994,0.75453,2649.9,2649.6,1.9588]
[1748473029194,0.75455,2649.8,2649.7,2.04406]
[1748473029495,0.75453,2649.9,2649.8,0.75455]
[1748473029695,0.75453,2649.9,2649.8,1.2895]
[1748473030394,0.75453,2649.9,2649.8,2.04405]
[1748473030595,0.75453,2649.9,2649.8,1.2895]
[1748473031399,0.75453,2649.9,2649.8,2.04405]
[1748473031593,0.75453,2649.9,2649.8,1.2895]
[1748473031792,0.75453,2649.9,2649.8,2.04405]
[1748473031996,0.75453,2649.9,2649.8,1.2895]
[1748473032294,1.3412,2650.0,2649.8,1.2895]
[1748473032497,1.3412,2650.0,2649.9,0.75452]
[1748473032701,1.3412,2650.0,2649.9,1.36732]
[1748473033401,0.75448,2650.1,2650.0,0.75449]
[1748473033592,0.75448,2650.1,2650.0,2.02909]
[1748473033792,0.75444,2650.2,2650.1,0.75444]
[1748473034000,0.75444,2650.2,2650.1,2.68894]
[1748473034398,2.16305908,2650.3,2650.2,0.75444]
[1748473034600,0.07463908,2650.3,2650.2,2.06714]
[1748473037602,0.07463908,2650.3,2650.2,19.33914]
[1748473038605,0.07463908,2650.3,2650.2,24.33914]
[1748473039398,0.07463908,2650.3,2650.2,19.33914]
[1748473040802,0.07463908,2650.3,2650.2,24.33914]
[1748473042108,0.07463908,2650.3,2650.2,7.06714]
[1748473042301,0.07463908,2650.3,2650.2,24.33714]
[1748473042501,0.07463908,2650.3,2650.2,19.33714]
[1748473043604,0.07463908,2650.3,2650.2,2.06714]
[1748473043811,0.07463908,2650.3,2650.2,19.33714]
[1748473048316,0.07463908,2650.3,2650.2,2.06714]
[1748473048515,0.07463908,2650.3,2650.2,19.33614]
[1748473048920,0.07463908,2650.3,2650.2,2.06714]
[1748473049119,0.07463908,2650.3,2650.2,19.33614]
[1748473052516,0.07463908,2650.3,2650.2,2.06714]
[1748473052722,0.07463908,2650.3,2650.2,19.33614]
[1748473054310,0.07463908,2650.3,2650.2,19.33514]
[1748473058222,0.07463908,2650.3,2650.2,22.54294]
[1748473059926,1.34043908,2650.3,2650.2,22.54294]
[1748473063523,2.09484908,2650.3,2650.2,5.27494]
[1748473063723,1.34043908,2650.3,2650.1,0.75443]
[1748473063927,2.72688,2650.2,2650.1,0.75443]
[1748473064127,2.72688,2650.2,2650.1,21.23023]
[1748473064932,2.08798,2650.2,2650.1,21.23023]
[1748473065429,2.08798,2650.2,2650.1,18.02243]
[1748473065827,2.08798,2650.2,2650.1,21.23023]
[1748473066637,0.07463908,2650.3,2650.2,0.75443]
[1748473066929,0.07463908,2650.3,2650.2,2.04703]
[1748473067326,1.36723908,2650.3,2650.2,2.04703]
[1748473067828,2.12166908,2650.3,2650.2,2.04703]
[1748473069630,0.07463908,2650.3,2650.2,2.04703]
[1748473071027,0.82904908,2650.3,2650.2,2.04703]
[1748473072433,2.09444908,2650.3,2650.2,2.04703]
[1748473073133,1.34003908,2650.3,2650.2,2.04703]
[1748473073732,2.09444908,2650.3,2650.2,2.04703]
[1748473074233,1.34003908,2650.3,2650.2,2.04703]
[1748473075737,2.09444908,2650.3,2650.2,2.04703]
[1748473077736,1.34003908,2650.3,2650.2,2.04703]
[1748473078834,2.09444908,2650.3,2650.2,19.31503]
[1748473080440,2.09444908,2650.3,2650.2,2.04703]
[1748473080643,2.09444908,2650.3,2650.2,19.31403]
[1748473080943,0.75444,2650.2,2650.1,3.96224]
[1748473081141,2.04284,2650.2,2650.1,3.96224]
[1748473081334,2.04284,2650.2,2650.1,21.22924]
[1748473081736,2.04284,2650.2,2650.1,3.96224]
[1748473081937,2.04284,2650.2,2650.1,21.22924]
[1748473082642,2.04284,2650.2,2650.1,3.96226]
[1748473083846,1.2884,2650.2,2650.1,3.96226]
[1748473084046,1.2884,2650.2,2650.1,5.24076]
[1748473085444,2.04283,2650.2,2650.1,5.24076]
[1748473085645,2.11746908,2650.2,2650.1,5.24076]
[1748473091850,2.11746908,2650.2,2650.1,2.03296]
[1748473092752,2.11746908,2650.2,2650.1,0.75446]
[1748473093449,2.11746908,2650.2,2649.9,18.5166]
[1748473093450,1.36303908,2650.2,2649.9,1.2496]
[1748473093649,0.75449,2650.0,2649.9,2.00409]
[1748473094043,1.41669,2650.0,2649.9,2.00409]
[1748473094244,1.41669,2650.0,2649.9,1.36729]
[1748473094646,0.6622,2650.0,2649.9,2.65069]
[1748473095656,1.41669,2650.0,2649.9,2.65069]
[1748473098155,0.07463908,2650.2,2650.1,0.75446]
[1748473098353,0.07463908,2650.2,2650.1,3.96226]
[1748473098552,0.07463908,2650.2,2650.1,4.58096]
[1748473099656,0.82907908,2650.2,2650.1,4.58096]
[1748473114564,0.82907908,2650.2,2650.1,3.96226]
[1748473117765,0.07463908,2650.2,2650.1,3.96226]
[1748473125471,0.82907908,2650.2,2650.1,3.96226]
[1748473126072,0.07463908,2650.2,2650.1,3.96226]
[1748473126677,0.82907908,2650.2,2650.1,3.96226]
[1748473128784,0.82907908,2650.2,2650.1,3.2078]
[1748473129379,0.75452,2649.9,2649.8,3.2078]
[1748473130177,0.75461,2649.6,2649.5,5.84522]
[1748473130382,0.75461,2649.6,2649.4,0.63136006]
[1748473130383,0.75464,2649.5,2649.4,0.00566006]
[1748473130681,1.3453,2649.5,2649.4,0.76032006]
[1748473130880,2.09994,2649.5,2649.4,0.76032006]
[1748473131082,1.3453,2649.5,2649.4,1.99752006]
[1748473132091,0.75463,2649.6,2649.5,0.75464]
[1748473132285,0.75463,2649.6,2649.5,5.29514]
[1748473132585,0.75463,2649.6,2649.5,5.96384]
[1748473134986,1.98389,2649.7,2649.6,0.75461]
[1748473142089,0.75461,2649.6,2649.5,2.0014]
[1748473142286,0.75464,2649.5,2649.4,3.96811006]
[1748473142589,1.36314,2649.5,2649.4,3.96811006]
[1748473142989,1.36314,2649.5,2649.4,3.21346006]
[1748473143198,1.36314,2649.5,2649.4,0.00566006]
[1748473143389,7.03664,2649.5,2649.4,0.00566006]
[1748473143696,0.75485,2648.9,2648.8,0.75483]
[1748473143891,1.88683,2649.2,2648.7,2.01514]
[1748473143892,0.75484,2648.8,2648.7,2.01514]
[1748473144195,2.613,2649.1,2648.7,1.2603]
[1748473144385,3.2078,2649.5,2649.0,3.2078]
[1748473144697,0.00566006,2649.2,2649.1,3.28755]
[1748473144996,0.00566006,2649.2,2649.1,2.03995]
[1748473146898,0.76038006,2649.2,2649.1,2.03995]
[1748473148695,0.00566006,2649.2,2649.1,2.03995]